bitfinex-derivatives/quotes_SOLF0:USTF0_20250731
["timestamp","ask_amount","ask_price","bid_price","bid_amount"]
[1753972378268,3.15,176.34,176.32,3.19]
[1753972378475,5.671,176.36,176.32,5.6719]
[1753972378675,8.821,176.36,176.32,5.6719]
[1753972378870,8.821,176.36,176.34,3.19]
[1753972379272,115.54230666,176.4,176.34,3.19]
[1753972379571,3.15,176.38,176.32,3.19]
[1753972379773,3.15,176.34,176.32,3.19]
[1753972380371,3.15,176.35,176.33,3.19]
[1753972380576,5.671,176.36,176.22,6.62230666]
[1753972380577,3.15,176.37,176.31,3.19]
[1753972381071,6.62230666,176.36,176.3,5.6726]
[1753972381277,3.15,176.32,176.3,3.19]
[1753972381484,6.62230666,176.34,176.27,3.19]
[1753972381675,3.15,176.33,176.27,3.19]
[1753972382279,3.15,176.35,176.28,3.19]
[1753972382976,6.62230666,176.35,176.28,3.19]
[1753972383180,3.15,176.34,176.28,3.19]
[1753972384082,5.6721,176.33,176.29,5.673]
[1753972384282,6.62230666,176.37,176.27,6.62230666]
[1753972384487,8.8215,176.35,176.31,5.6723]
[1753972384681,3.15,176.35,176.31,5.6723]
[1753972384887,3.15,176.37,176.34,3.19]
[1753972385180,3.15,176.38,176.37,3.19]
[1753972385382,3.15,176.38,176.35,5.6712]
[1753972385584,8.8204,176.38,176.36,3.19]
[1753972385779,3.15,176.45,176.36,3.19]
[1753972385977,4.16289517,176.44,176.37,6.62230666]
[1753972386177,3.15,176.43,176.37,6.62230666]
[1753972386376,3.15,176.45,176.43,3.19]
[1753972386983,489.82,176.49,176.43,3.19]
[1753972386984,3.15,176.44,176.43,3.19]
[1753972387181,3.15,176.44,176.41,8.8592]
[1753972387377,3.15,176.44,176.42,3.19]
[1753972387575,3.15,176.48,176.39,6.62230666]
[1753972387781,3.15,176.43,176.32,3.19]
[1753972388078,3.15,176.43,176.36,3.19]
[1753972388488,3.15,176.43,176.37,6.62230666]
[1753972388678,3.15,176.43,176.38,3.19]
[1753972388876,3.15,176.41,176.39,3.19]
[1753972389083,6.62230666,176.46,176.37,6.62230666]
[1753972389377,3.15,176.42,176.39,3.19]
[1753972389578,3.15,176.41,176.37,3.19]
[1753972389786,3.15,176.4,176.37,3.19]
[1753972389985,3.15,176.45,176.35,3.19]
[1753972390389,3.15,176.41,176.39,3.19]
[1753972390781,6.62230666,176.46,176.39,3.19]
[1753972391083,3.15,176.43,176.35,3.19]
[1753972391481,6.62230666,176.44,176.36,8.8608]
[1753972391482,5.6699,176.4,176.36,8.8608]
[1753972391682,3.15,176.38,176.36,3.19]
[1753972394186,6.62230666,176.44,176.36,3.19]
[1753972394383,3.15,176.36,176.34,3.19]
[1753972394888,3.15,176.35,176.29,6.62230666]
[1753972395087,3.15,176.35,176.3,3.19]
[1753972395487,3.15,176.39,176.32,3.19]
[1753972396288,3.15,176.35,176.34,3.19]
[1753972396788,3.15,176.38,176.3,3.19]
[1753972397385,3.15,176.38,176.32,3.19]
[1753972397785,5.6709,176.36,176.33,5.6717]
[1753972397982,8.8209,176.36,176.34,3.19]
[1753972398587,3.15,176.37,176.31,3.19]
[1753972398794,3.15,176.35,176.28,3.19]
[1753972399294,3.15,176.33,176.26,3.19]
[1753972400088,5.6731,176.3,176.26,8.864]
[1753972400284,3.15,176.29,176.27,3.19]
[1753972400787,3.15,176.28,176.22,3.19]
[1753972401293,8.8235,176.28,176.26,3.19]
[1753972401696,5.6742,176.26,176.23,5.675]
[1753972401896,3.15,176.27,176.17,6.62230666]
[1753972402093,3.15,176.27,176.19,3.19]
[1753972402387,3.15,176.22,176.21,3.19]
[1753972402995,3.15,176.22,176.16,3.19]
[1753972403389,3.15,176.22,176.19,5.6762]
[1753972403595,3.15,176.25,176.15,6.62230666]
[1753972403795,3.15,176.25,176.18,3.19]
[1753972403996,5.6753,176.23,176.19,5.6762]
[1753972404185,3.15,176.25,176.18,3.19]
[1753972404692,6.62230666,176.27,176.17,6.62230666]
[1753972404898,3.15,176.26,176.2,3.19]
[1753972405298,3.15,176.23,176.18,3.19]
[1753972405602,3.15,176.26,176.18,3.19]
[1753972405892,6.62230666,176.28,176.12,215.91217501]
[1753972405893,3.15,176.3,176.22,3.19]
[1753972406292,5.6741,176.27,176.22,3.19]
[1753972406597,3.15,176.26,176.22,3.19]
[1753972406797,3.15,176.26,176.24,5.6745]
[1753972406999,3.15,176.26,176.24,8.8645]
[1753972407194,6.62230666,176.31,176.24,3.19]
[1753972407396,3.15,176.26,176.24,3.19]
[1753972407595,3.15,176.26,176.25,8.8644]
[1753972407793,3.15,176.26,176.25,3.19]
[1753972407994,3.15,176.3,176.22,3.19]
[1753972408196,3.06,176.21,176.2,3.16]
[1753972408391,3.06,176.21,176.18,3.16]
[1753972408597,3.06,176.21,176.19,3.16]
[1753972408897,3.06,176.2,176.19,3.16]
[1753972409092,3.06,176.2,176.16,3.16]
[1753972409298,3.06,176.2,176.18,3.16]
[1753972409492,3.06,176.24,176.16,3.16]
[1753972409897,5.6749,176.24,176.21,5.6757]
[1753972410087,3.06,176.23,176.21,8.8357]
[1753972410288,3.06,176.23,176.21,3.16]
[1753972410693,3.06,176.22,176.21,3.16]
[1753972410998,3.06,176.22,176.11,6.62230666]
[1753972411190,3.06,176.22,176.15,6.62230666]
[1753972411385,3.06,176.22,176.15,3.16]
[1753972411587,3.06,176.21,176.15,3.16]
[1753972412092,3.06,176.2,176.17,8.8368]
[1753972412288,3.06,176.22,176.14,3.16]
[1753972412592,3.06,176.19,176.16,3.16]
[1753972412791,3.06,176.19,176.14,3.16]
[1753972413198,3.06,176.27,176.14,3.16]
[1753972413395,3.06,176.24,176.14,3.16]
[1753972413701,3.06,176.2,176.17,5.6768]
[1753972413991,3.06,176.22,176.14,3.16]
[1753972414195,3.06,176.2,176.11,6.62230666]
[1753972414396,6.62230666,176.17,176.1,3.16]
[1753972414592,3.06,176.16,176.1,3.16]
[1753972414792,3.06,176.16,176.07,6.62230666]
[1753972415096,6.62230666,176.17,176.12,3.16]
[1753972415298,5.6776,176.16,176.12,8.8384]
[1753972415498,3.06,176.15,176.12,8.8384]
[1753972415800,12.29960666,176.17,176.13,5.6782]
[1753972415997,3.06,176.16,176.14,3.16]
[1753972416697,3.06,176.14,176.1,3.16]
[1753972416897,6.62230666,176.17,176.11,3.16]
[1753972417197,3.06,176.12,176.04,6.62230666]
[1753972417404,3.06,176.12,176.05,3.16]
[1753972417795,3.06,176.14,176.07,3.16]
[1753972417996,3.06,176.16,176.08,6.62230666]
[1753972418290,3.06,176.16,176.1,6.62230666]
[1753972418491,3.06,176.16,176.11,3.16]
[1753972418795,3.06,176.16,176.14,5.678]
[1753972419003,3.06,176.16,176.14,8.838]
[1753972419204,8.7373,176.16,176.14,3.16]
[1753972419703,3.06,176.18,176.12,6.62230666]
[1753972420001,3.06,176.2,176.13,3.16]
[1753972420195,108.76,176.22,176.16,8.8372]
[1753972420392,3.06,176.18,176.16,8.8372]
[1753972420903,3.06,176.24,176.16,6.62230666]
[1753972421098,3.06,176.23,176.19,3.16]
[1753972421305,384.5,176.25,176.23,5.675]
[1753972421495,3.06,176.23,176.21,3.16]
[1753972421694,3.06,176.22,176.16,6.62230666]
[1753972421997,3.06,176.24,176.17,3.16]
[1753972422699,8.7366,176.18,176.13,3.16]
[1753972422901,3.06,176.17,176.13,3.16]
[1753972423100,5.6762,176.2,176.13,3.16]
[1753972423301,3.06,176.22,176.13,3.16]
[1753972423502,3.06,176.22,176.16,5.6772]
[1753972423701,6.62230666,176.19,176.12,3.16]
[1753972423906,3.06,176.18,176.12,3.16]
[1753972424106,3.06,176.18,176.12,8.8385]
[1753972424402,6.62230666,176.19,176.12,3.16]
[1753972424606,3.06,176.14,176.12,3.16]
[1753972424904,3.06,176.13,176.1,3.16]
[1753972425101,3.06,176.13,176.07,3.16]
[1753972425411,6.62230666,176.17,176.06,6.62230666]
[1753972425600,6.62230666,176.15,176.07,3.16]
[1753972425802,3.06,176.14,176.07,3.16]
[1753972426106,3.06,176.14,176.1,3.16]
[1753972426305,3.06,176.13,176.1,3.16]
[1753972426506,3.06,176.12,176.1,3.16]
[1753972426707,3.06,176.11,176.08,3.16]
[1753972427007,3.06,176.11,176.09,3.16]
[1753972427604,3.06,176.11,176.09,8.8394]
[1753972428000,0.98842576,176.19,176.06,6.62230666]
[1753972428001,6.62230666,176.17,176.12,5.6783]
[1753972428205,3.06,176.15,176.13,3.16]
[1753972428411,6.62230666,176.17,176.08,6.62230666]
[1753972428707,3.06,176.13,176.07,3.16]
[1753972429008,5.6789,176.11,176.08,5.6796]
[1753972429208,3.06,176.14,176.07,3.16]
[1753972429506,3.06,176.14,176.08,6.62230666]
[1753972429698,6.62230666,176.17,176.13,3.16]
[1753972430008,3.06,176.15,176.13,3.16]
[1753972430208,8.7377,176.15,176.13,3.16]
[1753972430507,8.7377,176.15,176.09,3.16]
[1753972430508,3.06,176.15,176.09,3.16]
[1753972430709,3.06,176.15,176.12,5.6782]
[1753972430901,3.06,176.15,176.08,6.62230666]
[1753972431510,3.06,176.14,176.12,3.16]
[1753972432310,3.06,176.17,176.08,3.16]
[1753972432505,3.06,176.17,176.1,3.16]
[1753972432905,5.6775,176.16,176.1,3.16]
[1753972433101,3.06,176.17,176.1,3.16]
[1753972433507,3.06,176.14,176.12,8.8385]
[1753972433703,3.06,176.14,176.13,3.16]
[1753972434211,3.06,176.16,176.14,3.16]
[1753972434406,3.06,176.24,176.15,3.16]
[1753972434606,3.06,176.24,176.16,3.16]
[1753972434912,381.44,176.25,176.19,3.16]
[1753972435109,3.06,176.21,176.19,3.16]
[1753972435305,3.06,176.2,176.17,5.6767]
[1753972435613,3.06,176.2,176.19,3.16]
[1753972435910,3.06,176.24,176.19,3.16]
[1753972436408,5.6751,176.23,176.19,5.6761]
[1753972436606,3.06,176.24,176.17,6.62230666]
[1753972436910,5.6758,176.21,176.18,5.6763]
[1753972437113,8.7358,176.21,176.19,3.16]
[1753972437307,3.06,176.24,176.16,3.16]
[1753972437508,8.7365,176.19,176.17,3.16]
[1753972437708,8.7365,176.19,176.18,3.16]
[1753972437911,3.06,176.19,176.13,6.62230666]
[1753972438111,6.62230666,176.22,176.15,3.16]
[1753972438311,3.26,176.17,176.15,3.16]
[1753972438513,3.26,176.16,176.15,3.16]
[1753972438806,3.26,176.16,176.14,3.28]
[1753972439006,5.6774,176.16,176.1,3.28]
[1753972439206,8.9374,176.16,176.1,3.28]
[1753972439406,3.26,176.16,176.1,3.28]
[1753972439610,8.9377,176.15,176.13,3.28]
[1753972440108,3.26,176.15,176.09,6.62230666]
[1753972440311,3.26,176.18,176.1,3.28]
[1753972440810,5.6771,176.17,176.14,5.6776]
[1753972441018,8.9371,176.17,176.15,3.28]
[1753972441207,3.26,176.19,176.15,3.28]
[1753972441408,3.26,176.21,176.13,6.62230666]
[1753972441612,3.26,176.21,176.14,3.28]
[1753972441914,6.62230666,176.2,176.14,3.28]
[1753972442213,3.26,176.19,176.1,3.28]
[1753972442410,3.26,176.23,176.16,3.28]
[1753972442609,3.26,176.23,176.18,3.28]
[1753972442907,5.675,176.23,176.19,3.28]
[1753972443105,3.26,176.22,176.19,3.28]
[1753972443303,3.26,176.22,176.2,3.28]
[1753972443616,8.9353,176.22,176.2,3.28]
[1753972444110,5.6747,176.24,176.21,8.9555]
[1753972444311,381.44,176.25,176.21,3.28]
[1753972444512,3.26,176.23,176.21,3.28]
[1753972444815,8.9351,176.23,176.21,3.28]
[1753972445108,5.6751,176.23,176.21,3.28]
[1753972445314,3.26,176.22,176.21,3.28]
[1753972446308,381.44,176.25,176.18,3.28]
[1753972446516,3.26,176.24,176.18,3.28]
[1753972447015,5.6755,176.22,176.19,5.6761]
[1753972447214,8.9355,176.22,176.2,3.28]
[1753972447418,3.26,176.22,176.2,3.28]
[1753972447913,3.26,176.22,176.18,3.28]
[1753972448615,8.9354,176.22,176.2,3.28]
[1753972449211,381.44,176.25,176.15,6.62230666]
[1753972449514,3.26,176.23,176.17,3.28]
[1753972449814,8.9364,176.19,176.12,3.28]
[1753972450016,3.26,176.19,176.12,3.28]
[1753972450312,381.44,176.25,176.13,3.28]
[1753972450616,3.26,176.22,176.14,3.28]
[1753972450813,3.26,176.16,176.14,3.28]
[1753972451116,3.26,176.2,176.14,3.28]
[1753972451319,3.26,176.23,176.17,6.62230666]
[1753972451519,3.26,176.23,176.18,3.28]
[1753972451719,9.88230666,176.23,176.16,3.28]
[1753972452018,3.26,176.18,176.16,3.28]
[1753972452211,3.26,176.18,176.13,6.62230666]
[1753972452416,5.6762,176.2,176.16,5.6771]
[1753972452717,3.26,176.19,176.14,3.28]
[1753972452911,3.26,176.19,176.03,17.0436]
[1753972452912,5.6758,176.21,176.18,5.6764]
[1753972453108,3.26,176.22,176.19,3.28]
[1753972453316,3.26,176.21,176.19,3.28]
[1753972453620,108.54,176.23,176.22,3.28]
[1753972453916,8.9338,176.27,176.24,5.6744]
[1753972454117,3.26,176.28,176.26,3.28]
[1753972454719,108.52,176.3,176.22,3.28]
[1753972455015,5.6733,176.29,176.27,5.6737]
[1753972455319,3.26,176.3,176.28,3.28]
[1753972455619,8.9331,176.29,176.28,3.28]
[1753972455924,3.26,176.32,176.26,3.28]
[1753972457021,5.6732,176.29,176.26,8.954]
[1753972457213,5.6732,176.29,176.28,3.28]
[1753972458117,5.6737,176.28,176.23,6.62230666]
[1753972458317,5.6737,176.28,176.24,3.28]
[1753972458518,3.26,176.29,176.24,3.28]
[1753972458917,3.26,176.31,176.25,6.62230666]
[1753972459115,3.26,176.31,176.26,3.28]
[1753972459317,3.26,176.32,176.26,3.28]
[1753972459826,5.6729,176.3,176.27,5.6735]
[1753972460015,3.26,176.33,176.26,3.28]
[1753972460223,381.54,176.35,176.29,6.62230666]
[1753972460521,3.26,176.36,176.31,6.62230666]
[1753972460717,3.26,176.38,176.32,3.28]
[1753972461514,108.46,176.39,176.33,3.28]
[1753972461515,3.26,176.35,176.33,3.28]
[1753972462114,3.26,176.37,176.31,3.28]
[1753972462320,6.62230666,176.36,176.31,3.28]
[1753972462522,3.26,176.35,176.27,3.28]
[1753972462718,3.26,176.35,176.29,3.28]
[1753972463312,5.6727,176.3,176.29,3.28]
[1753972463518,3.26,176.33,176.27,3.28]
[1753972463922,5.673,176.3,176.24,6.62230666]
[1753972464123,5.673,176.3,176.25,3.28]
[1753972464322,8.933,176.3,176.25,3.28]
[1753972464517,8.933,176.3,176.29,3.28]
[1753972465021,5.6733,176.29,176.24,6.62230666]
[1753972465225,8.9333,176.29,176.26,3.28]
[1753972465522,3.26,176.29,176.27,3.28]
[1753972465920,5.6729,176.3,176.23,6.62230666]
[1753972466120,3.26,176.31,176.24,3.28]
[1753972466320,5.673,176.3,176.24,3.28]
[1753972466624,108.42,176.34,176.24,3.28]
[1753972466927,3.26,176.31,176.27,5.6734]
[1753972467223,3.26,176.31,176.29,3.28]
[1753972468217,8.9328,176.3,176.29,3.28]
[1753972468426,3.1,176.33,176.26,3.16]
[1753972468622,5.6727,176.31,176.28,5.6731]
[1753972468827,3.1,176.35,176.27,6.62230666]
[1753972469026,3.1,176.35,176.28,3.16]
[1753972469225,5.6718,176.33,176.29,5.6728]
[1753972469525,3.1,176.32,176.27,6.62230666]
[1753972469718,3.1,176.35,176.28,3.16]
[1753972469920,3.1,176.35,176.29,6.62230666]
[1753972470126,3.1,176.38,176.33,3.16]
[1753972470326,3.1,176.38,176.34,3.16]
[1753972470526,3.1,176.35,176.29,6.62230666]
[1753972470721,3.1,176.36,176.3,3.16]
[1753972470922,3.1,176.34,176.28,3.16]
[1753972471126,5.6725,176.31,176.28,8.8332]
[1753972471326,8.7725,176.31,176.29,3.16]
[1753972471620,3.1,176.34,176.3,3.16]
[1753972471825,3.1,176.34,176.32,3.16]
[1753972472018,3.1,176.33,176.32,3.16]
[1753972472626,3.1,176.33,176.25,6.62230666]
[1753972472627,3.1,176.32,176.26,3.16]
[1753972473127,3.1,176.31,176.29,3.16]
[1753972473328,3.1,176.33,176.24,6.62230666]
[1753972473523,3.1,176.31,176.27,3.16]
[1753972473729,3.1,176.31,176.25,3.16]
[1753972473931,3.1,176.34,176.26,6.62230666]
[1753972474231,3.1,176.33,176.28,5.6733]
[1753972474430,5.6722,176.32,176.3,3.16]
[1753972474634,3.1,176.32,176.3,3.16]
[1753972474834,5.6716,176.34,176.27,3.16]
[1753972475038,3.1,176.35,176.27,3.16]
[1753972475241,3.1,176.34,176.31,3.16]
[1753972475538,3.1,176.37,176.3,8.8325]
[1753972475742,3.1,176.37,176.29,3.16]
[1753972476041,8.7713,176.35,176.29,3.16]
[1753972476242,8.7713,176.35,176.33,3.16]
[1753972476442,3.1,176.34,176.33,3.16]
[1753972476643,8.7711,176.36,176.3,6.62230666]
[1753972476843,108.38,176.39,176.33,3.16]
[1753972477042,111.48,176.39,176.33,3.16]
[1753972477341,111.48,176.39,176.36,5.6706]
[1753972477541,3.1,176.44,176.37,3.16]
[1753972477742,3.1,176.44,176.38,6.62230666]
[1753972477934,3.1,176.5,176.41,3.16]
[1753972478140,108.32,176.52,176.43,3.16]
[1753972478436,108.32,176.52,176.43,5.6685]
[1753972478638,5.6677,176.46,176.44,3.16]
[1753972478842,8.7677,176.46,176.44,3.16]
[1753972479144,3.1,176.45,176.44,3.16]
[1753972479343,5.6677,176.46,176.44,3.16]
[1753972479542,108.32,176.52,176.44,3.16]
[1753972479543,5.6674,176.47,176.44,3.16]
[1753972479844,3.1,176.51,176.43,3.16]
[1753972480234,3.1,176.51,176.45,3.16]
[1753972480739,3.1,176.55,176.47,3.16]
[1753972480939,6.62230666,176.54,176.47,3.16]
[1753972481141,3.1,176.53,176.45,5.6678]
[1753972481341,3.1,176.53,176.45,8.8278]
[1753972481543,3.1,176.53,176.46,3.16]
[1753972482846,3.1,176.54,176.49,3.16]
[1753972483350,5.6656,176.53,176.5,3.16]
[1753972483544,3.1,176.56,176.49,3.16]
[1753972483847,3.1,176.59,176.51,3.16]
[1753972484039,3.1,176.59,176.51,8.8257]
[1753972484040,5.6644,176.56,176.51,8.8257]
[1753972484246,3.1,176.6,176.51,3.16]
[1753972484742,3.1,176.6,176.53,5.6654]
[1753972484944,3.1,176.6,176.54,3.16]
[1753972485451,5.6646,176.56,176.55,3.16]
[1753972485650,108.22,176.61,176.52,12.28780666]
[1753972485651,108.22,176.61,176.53,3.16]
[1753972485838,3.1,176.6,176.53,3.16]
[1753972486042,3.1,176.59,176.53,3.16]
[1753972486548,5.665,176.54,176.53,3.16]
[1753972486748,3.1,176.57,176.5,3.16]
[1753972487147,5.666,176.51,176.5,3.16]
[1753972487446,3.1,176.5,176.46,6.62230666]
[1753972487646,3.1,176.55,176.47,5.6672]
[1753972487846,3.1,176.55,176.46,6.62230666]
[1753972487847,3.1,176.55,176.48,3.16]
[1753972488247,5.6666,176.49,176.48,3.16]
[1753972488649,3.1,176.5,176.48,3.16]
[1753972489546,3.1,176.53,176.45,3.16]
[1753972489736,3.1,176.55,176.47,3.16]
[1753972489943,8.7656,176.53,176.49,3.16]
[1753972490140,3.1,176.52,176.49,3.16]
[1753972490339,3.1,176.52,176.5,3.16]
[1753972490545,3.1,176.55,176.49,6.62230666]
[1753972490741,3.1,176.57,176.5,3.16]
[1753972490944,3.1,176.59,176.52,3.16]
[1753972491443,3.1,176.59,176.51,6.62230666]
[1753972491645,3.1,176.59,176.54,3.16]
[1753972492041,0.98621286,176.6,176.53,6.62230666]
[1753972492242,3.1,176.58,176.55,3.16]
[1753972492750,5.6641,176.57,176.55,3.16]
[1753972493545,5.6641,176.57,176.56,3.16]
[1753972493759,8.7638,176.58,176.56,3.16]
[1753972494049,3.1,176.6,176.54,3.16]
[1753972494250,5.6638,176.58,176.54,3.16]
[1753972494451,3.1,176.58,176.53,6.62230666]
[1753972494750,3.1,176.58,176.54,3.16]
[1753972494942,8.7639,176.58,176.54,3.16]
[1753972495145,3.1,176.58,176.54,3.16]
[1753972495550,8.7639,176.58,176.54,8.8248]
[1753972495753,5.6639,176.58,176.54,5.6648]
[1753972496045,108.14,176.65,176.57,3.16]
[1753972496251,5.6635,176.59,176.56,3.16]
[1753972496446,3.1,176.61,176.56,3.16]
[1753972496852,6.62230666,176.65,176.55,6.62230666]
[1753972497053,489.28,176.66,176.58,3.16]
[1753972497054,3.1,176.6,176.58,3.16]
[1753972497654,8.7634,176.6,176.58,3.16]
[1753972497854,8.7634,176.6,176.56,3.16]
[1753972498055,6.62230666,176.65,176.55,6.62230666]
[1753972498251,3.27,176.59,176.57,3.07]
[1753972498650,3.27,176.59,176.54,3.07]
[1753972498850,3.27,176.62,176.53,6.62230666]
[1753972499156,3.27,176.6,176.52,3.07]
[1753972499358,3.27,176.61,176.54,3.07]
[1753972499752,5.6637,176.59,176.55,5.6646]
[1753972499951,3.27,176.57,176.54,3.07]
[1753972500150,3.27,176.61,176.55,3.07]
[1753972500347,6.62230666,176.62,176.53,3.07]
[1753972500555,6.62230666,176.62,176.43,217.01571894]
[1753972500556,3.27,176.55,176.49,3.07]
[1753972500755,3.27,176.55,176.46,6.62230666]
[1753972500957,3.27,176.55,176.47,3.07]
[1753972501258,108.04,176.58,176.43,217.01571894]
[1753972501259,3.27,176.57,176.5,6.62230666]
[1753972501458,3.27,176.6,176.53,3.07]
[1753972501655,9.89230666,176.6,176.53,3.07]
[1753972501856,3.27,176.57,176.48,6.62230666]
[1753972502058,3.27,176.57,176.51,6.62230666]
[1753972502262,3.27,176.57,176.52,3.07]
[1753972502652,11.26449936,176.62,176.52,3.07]
[1753972502958,3.27,176.6,176.52,3.07]
[1753972503155,5.664,176.58,176.55,3.07]
[1753972503360,3.27,176.61,176.52,3.07]
[1753972503554,5.6635,176.59,176.55,5.6645]
[1753972503863,3.27,176.61,176.56,3.07]
[1753972504056,8.933,176.61,176.57,5.6638]
[1753972504562,8.933,176.61,176.59,3.07]
[1753972504863,5.6632,176.6,176.57,8.7338]
[1753972505059,5.6632,176.6,176.58,3.07]
[1753972505261,108.02,176.64,176.58,3.07]
[1753972505460,4.15606909,176.63,176.59,6.62230666]
[1753972505661,11.3168,176.75,176.6,3.07]
[1753972505662,3.27,176.66,176.6,3.07]
[1753972505861,3.27,176.66,176.6,8.7331]
[1753972506057,3.27,176.65,176.62,3.07]
[1753972506256,3.27,176.64,176.62,3.07]
[1753972506463,8.9321,176.64,176.62,3.07]
[1753972507067,3.27,176.64,176.62,3.07]
[1753972507262,3.27,176.67,176.63,3.07]
[1753972507468,3.27,176.66,176.64,3.07]
[1753972507668,8.9313,176.66,176.64,3.07]
[1753972507965,8.9313,176.66,176.65,3.07]
[1753972508269,3.27,176.66,176.64,3.07]
[1753972508669,3.27,176.65,176.64,3.07]
[1753972508867,3.27,176.65,176.62,5.6624]
[1753972509062,3.27,176.65,176.61,6.62230666]
[1753972509262,3.27,176.67,176.64,3.07]
[1753972509468,107.98,176.71,176.64,3.07]
[1753972509774,3.27,176.65,176.64,3.07]
[1753972510473,8.9315,176.65,176.64,3.07]
[1753972510971,8.9315,176.65,176.62,3.07]
[1753972511167,8.9315,176.65,176.63,3.07]
[1753972511376,8.9315,176.65,176.62,3.07]
[1753972511573,8.9315,176.65,176.61,6.62230666]
[1753972511574,3.27,176.67,176.64,3.07]
[1753972511763,6.62230666,176.72,176.61,6.62230666]
[1753972511968,3.27,176.7,176.62,3.07]
[1753972512169,5.6611,176.67,176.63,5.662]
[1753972512371,8.9311,176.67,176.64,3.07]
[1753972512670,3.27,176.69,176.65,6.62230666]
[1753972512865,3.27,176.73,176.67,9.69230666]
[1753972513072,3.27,176.72,176.69,3.07]
[1753972513369,3.27,176.72,176.69,5.6602]
[1753972513563,3.27,176.72,176.71,3.07]
[1753972513768,3.27,176.71,176.69,3.07]
[1753972513964,3.27,176.7,176.69,3.07]
[1753972514368,3.27,176.72,176.69,3.07]
[1753972514572,5.6599,176.7,176.69,3.07]
[1753972514772,8.9299,176.7,176.67,9.69230666]
[1753972514975,8.9299,176.7,176.68,3.07]
[1753972515573,8.9299,176.7,176.69,3.07]
[1753972515776,107.92,176.75,176.67,3.07]
[1753972515970,3.27,176.68,176.67,3.07]
[1753972516165,3.27,176.68,176.64,6.62230666]
[1753972516376,3.27,176.66,176.63,3.07]
[1753972516569,3.27,176.66,176.64,3.07]
[1753972516769,3.27,176.71,176.65,3.07]
[1753972516973,3.27,176.68,176.66,3.07]
[1753972517569,3.27,176.71,176.64,5.6618]
[1753972517773,3.27,176.69,176.66,3.07]
[1753972518072,8.9308,176.68,176.66,3.07]
[1753972518380,3.27,176.72,176.66,3.07]
[1753972518575,3.27,176.7,176.66,3.07]
[1753972518876,5.6603,176.69,176.67,3.07]